[Event "Late-Titled-Tuesday-Blitz-July-09-2024"]
[Site "Chess.com"]
[Date "2024.07.09"]
[Round "3"]
[White "PattyCastillo"]
[Black "Cxrjs"]
[Result "1-0"]
[WhiteElo "1984"]
[BlackElo "2497"]
[TimeControl "180+1"]
[EndTime "14:28:18 PDT"]
[Termination "PattyCastillo won on time"]

1. d4 {[%clk 0:02:58.6]} 1... Nf6 {[%clk 0:02:59]} 2. Nf3 {[%clk 0:02:58.6]}
2... g6 {[%clk 0:02:58.7]} 3. Nc3 {[%clk 0:02:56.8]} 3... d5 {[%clk 0:02:58.4]}
4. Bf4 {[%clk 0:02:56.3]} 4... Bg7 {[%clk 0:02:58.6]} 5. e3 {[%clk 0:02:56.2]}
5... O-O {[%clk 0:02:58.3]} 6. Be2 {[%clk 0:02:55.8]} 6... c5 {[%clk 0:02:57.1]}
7. Ne5 {[%clk 0:02:53.9]} 7... b6 {[%clk 0:02:56.4]} 8. h4 {[%clk 0:02:51.8]}
8... Nfd7 {[%clk 0:02:53.1]} 9. h5 {[%clk 0:02:46.2]} 9... Nxe5 {[%clk
0:02:50.8]} 10. Bxe5 {[%clk 0:02:45.4]} 10... f6 {[%clk 0:02:40.6]} 11. Bf4
{[%clk 0:02:21.6]} 11... g5 {[%clk 0:02:33.1]} 12. h6 {[%clk 0:02:17.6]} 12...
Bh8 {[%clk 0:02:29.8]} 13. Bg3 {[%clk 0:02:16.8]} 13... Bb7 {[%clk 0:02:20.1]}
14. Bd3 {[%clk 0:02:11.2]} 14... e5 {[%clk 0:02:16.9]} 15. dxe5 {[%clk
0:02:04.7]} 15... fxe5 {[%clk 0:02:16.8]} 16. Qh5 {[%clk 0:01:48.5]} 16... c4
{[%clk 0:01:37.3]} 17. Be2 {[%clk 0:01:33]} 17... Bf6 {[%clk 0:01:26.6]} 18.
O-O-O {[%clk 0:01:30.8]} 18... b5 {[%clk 0:01:17.5]} 19. Bg4 {[%clk 0:01:26.8]}
19... d4 {[%clk 0:01:02.4]} 20. Be6+ {[%clk 0:01:25.1]} 20... Kh8 {[%clk
0:01:02.5]} 21. exd4 {[%clk 0:01:16.6]} 21... exd4 {[%clk 0:01:01.5]} 22. Rhe1
{[%clk 0:01:06.4]} 22... Qe8 {[%clk 0:00:37.5]} 23. Qxe8 {[%clk 0:01:03.4]}
23... Rxe8 {[%clk 0:00:37.2]} 24. Nxb5 {[%clk 0:00:59.5]} 24... Nc6 {[%clk
0:00:11.6]} 25. Nd6 {[%clk 0:00:57.2]} 25... Re7 {[%clk 0:00:09.7]} 26. Nxb7
{[%clk 0:00:55]} 26... Rxb7 {[%clk 0:00:09.8]} 27. Bd5 {[%clk 0:00:55.5]} 27...
Rb6 {[%clk 0:00:08]} 28. Bxc4 {[%clk 0:00:53.4]} 28... Nb4 {[%clk 0:00:06.7]}
29. a3 {[%clk 0:00:48.5]} 29... Rc6 {[%clk 0:00:04.9]} 30. Bb3 {[%clk
0:00:37.1]} 30... Rac8 {[%clk 0:00:03]} 31. axb4 {[%clk 0:00:35.8]} 31... d3
{[%clk 0:00:02.5]} 32. Rxd3 {[%clk 0:00:34.1]} 32... g4 {[%clk 0:00:03.1]} 33.
Re6 {[%clk 0:00:30.6]} 33... Bg5+ {[%clk 0:00:03]} 34. Kb1 {[%clk 0:00:30.1]}
34... Bxh6 {[%clk 0:00:02.8]} 35. Rxc6 {[%clk 0:00:29.5]} 35... Rxc6 {[%clk
0:00:03.3]} 36. Rd8+ {[%clk 0:00:29.6]} 36... Kg7 {[%clk 0:00:03.8]} 37. Rd7+
{[%clk 0:00:29.7]} 37... Kf8 {[%clk 0:00:03.5]} 38. Rd6 {[%clk 0:00:29.8]} 1-0

[Event "Late-Titled-Tuesday-Blitz-July-09-2024"]
[Site "Chess.com"]
[Date "2024.07.09"]
[Round "3"]
[White "MetiForce"]
[Black "CarlosjPineror"]
[Result "1-0"]
[WhiteElo "2896"]
[BlackElo "2677"]
[TimeControl "180+1"]
[EndTime "14:28:20 PDT"]
[Termination "MetiForce won by resignation"]

1. e4 {[%clk 0:03:00.9]} 1... c5 {[%clk 0:02:54.6]} 2. Nf3 {[%clk 0:02:59.3]}
2... e6 {[%clk 0:02:54.5]} 3. d4 {[%clk 0:02:58.9]} 3... cxd4 {[%clk 0:02:55.4]}
4. Nxd4 {[%clk 0:02:59.3]} 4... a6 {[%clk 0:02:55.9]} 5. Bd3 {[%clk 0:02:58.5]}
5... Qc7 {[%clk 0:02:56.5]} 6. O-O {[%clk 0:02:57.3]} 6... Nf6 {[%clk
0:02:57.2]} 7. Qe2 {[%clk 0:02:51.6]} 7... d6 {[%clk 0:02:56.9]} 8. c4 {[%clk
0:02:45.9]} 8... Be7 {[%clk 0:02:56.6]} 9. f4 {[%clk 0:02:45.8]} 9... Nbd7
{[%clk 0:02:56.7]} 10. Nc3 {[%clk 0:02:44]} 10... b6 {[%clk 0:02:56.4]} 11. Bc2
{[%clk 0:02:33.8]} 11... Bb7 {[%clk 0:02:50.4]} 12. f5 {[%clk 0:02:33.9]} 12...
e5 {[%clk 0:02:49.4]} 13. Nf3 {[%clk 0:02:26.8]} 13... Rc8 {[%clk 0:02:49.6]}
14. Bd3 {[%clk 0:01:57.7]} 14... Nc5 {[%clk 0:02:49.1]} 15. Nd2 {[%clk
0:01:36.5]} 15... Nxd3 {[%clk 0:02:43.6]} 16. Qxd3 {[%clk 0:01:37.4]} 16... O-O
{[%clk 0:02:33.4]} 17. a4 {[%clk 0:01:32.8]} 17... Qc5+ {[%clk 0:02:22.1]} 18.
Kh1 {[%clk 0:01:32.6]} 18... Qd4 {[%clk 0:02:00.1]} 19. Qf3 {[%clk 0:01:09.5]}
19... h5 {[%clk 0:01:52.2]} 20. h3 {[%clk 0:01:05]} 20... h4 {[%clk 0:01:51.3]}
21. Rd1 {[%clk 0:00:52]} 21... g6 {[%clk 0:01:44.3]} 22. b3 {[%clk 0:00:44.7]}
22... Qc5 {[%clk 0:01:09.3]} 23. Ba3 {[%clk 0:00:41.8]} 23... Qc7 {[%clk
0:01:06.8]} 24. Nd5 {[%clk 0:00:36.5]} 24... Bxd5 {[%clk 0:01:05.3]} 25. exd5
{[%clk 0:00:36.7]} 25... Qd7 {[%clk 0:01:02.1]} 26. Rf1 {[%clk 0:00:35.7]} 26...
Qxf5 {[%clk 0:00:59.3]} 27. Qxf5 {[%clk 0:00:35.2]} 27... gxf5 {[%clk
0:01:00.2]} 28. Rxf5 {[%clk 0:00:35.4]} 28... Kg7 {[%clk 0:01:00.8]} 29. Raf1
{[%clk 0:00:34.1]} 29... Kg6 {[%clk 0:01:01.2]} 30. Bxd6 {[%clk 0:00:32.7]}
30... Nh5 {[%clk 0:00:56.4]} 31. Rxh5 {[%clk 0:00:19]} 31... Bxd6 {[%clk
0:00:53.4]} 32. Rhf5 {[%clk 0:00:18.5]} 32... f6 {[%clk 0:00:53.4]} 33. Ne4
{[%clk 0:00:18.6]} 33... Be7 {[%clk 0:00:54]} 34. d6 {[%clk 0:00:16.8]} 34...
Bd8 {[%clk 0:00:54.5]} 35. Rxe5 {[%clk 0:00:16.3]} 35... Rf7 {[%clk 0:00:40.1]}
36. Re8 {[%clk 0:00:14.4]} 36... Rd7 {[%clk 0:00:35.2]} 37. Rxf6+ {[%clk
0:00:13]} 37... Bxf6 {[%clk 0:00:34.7]} 38. Rxc8 {[%clk 0:00:13.3]} 38... Bd4
{[%clk 0:00:34.6]} 39. Re8 {[%clk 0:00:10.9]} 39... Rf7 {[%clk 0:00:33.9]} 40.
g4 {[%clk 0:00:10.6]} 40... Rf3 {[%clk 0:00:31.7]} 41. d7 {[%clk 0:00:07.2]} 1-0

[Event "Late-Titled-Tuesday-Blitz-July-09-2024"]
[Site "Chess.com"]
[Date "2024.07.09"]
[Round "3"]
[White "aexmi"]
[Black "Kowarenai"]
[Result "0-1"]
[WhiteElo "2260"]
[BlackElo "2548"]
[TimeControl "180+1"]
[EndTime "14:28:20 PDT"]
[Termination "Kowarenai won on time"]

1. d4 {[%clk 0:03:00.9]} 1... Nf6 {[%clk 0:02:59.1]} 2. Bf4 {[%clk 0:03:01.3]}
2... d5 {[%clk 0:02:58.6]} 3. e3 {[%clk 0:03:01.7]} 3... c5 {[%clk 0:02:58.1]}
4. Nf3 {[%clk 0:03:01.6]} 4... Nc6 {[%clk 0:02:58.2]} 5. Nbd2 {[%clk 0:03:01.8]}
5... Bg4 {[%clk 0:02:57.6]} 6. c3 {[%clk 0:02:50.8]} 6... cxd4 {[%clk
0:02:53.9]} 7. exd4 {[%clk 0:02:50.6]} 7... e6 {[%clk 0:02:54.4]} 8. Qb3 {[%clk
0:02:45.4]} 8... Qc8 {[%clk 0:02:49]} 9. Bd3 {[%clk 0:02:37.2]} 9... Be7 {[%clk
0:02:48.4]} 10. h3 {[%clk 0:02:34]} 10... Bh5 {[%clk 0:02:48.2]} 11. O-O {[%clk
0:02:32]} 11... O-O {[%clk 0:02:47.6]} 12. Ne5 {[%clk 0:02:19]} 12... Nxe5
{[%clk 0:02:34]} 13. Bxe5 {[%clk 0:02:17.2]} 13... a6 {[%clk 0:02:03.3]} 14. a4
{[%clk 0:02:16.3]} 14... Bg6 {[%clk 0:02:01.7]} 15. Bxg6 {[%clk 0:02:15]} 15...
hxg6 {[%clk 0:02:02.6]} 16. a5 {[%clk 0:02:15.5]} 16... Nd7 {[%clk 0:02:02.1]}
17. Bg3 {[%clk 0:02:11.5]} 17... Qc6 {[%clk 0:02:02.7]} 18. Nf3 {[%clk
0:01:45.7]} 18... Qb5 {[%clk 0:02:00.5]} 19. Qxb5 {[%clk 0:01:26.2]} 19... axb5
{[%clk 0:01:59.4]} 20. b4 {[%clk 0:01:27.1]} 20... Ra6 {[%clk 0:01:58.3]} 21.
Rfc1 {[%clk 0:01:08.9]} 21... Rfa8 {[%clk 0:01:54.1]} 22. Nd2 {[%clk 0:01:02.1]}
22... Bg5 {[%clk 0:01:49]} 23. f4 {[%clk 0:01:00.5]} 23... Be7 {[%clk
0:01:49.5]} 24. Nb3 {[%clk 0:00:59.7]} 24... Nb8 {[%clk 0:01:49.3]} 25. f5
{[%clk 0:00:37.5]} 25... gxf5 {[%clk 0:01:40.1]} 26. Bxb8 {[%clk 0:00:37.2]}
26... Rxb8 {[%clk 0:01:41]} 27. Rab1 {[%clk 0:00:25.5]} 27... Ra7 {[%clk
0:01:34.2]} 28. Nd2 {[%clk 0:00:21.6]} 28... Kf8 {[%clk 0:01:33.2]} 29. Nf3
{[%clk 0:00:21.3]} 29... Bd6 {[%clk 0:01:32.8]} 30. Ne1 {[%clk 0:00:18.8]} 30...
b6 {[%clk 0:01:30.5]} 31. axb6 {[%clk 0:00:17.7]} 31... Rxb6 {[%clk 0:01:31.4]}
32. Nd3 {[%clk 0:00:17.4]} 32... Rba6 {[%clk 0:01:30.3]} 33. Nc5 {[%clk
0:00:15.8]} 33... Ra2 {[%clk 0:01:27.8]} 34. Nb3 {[%clk 0:00:08.9]} 34... Ke7
{[%clk 0:01:20.5]} 35. Na5 {[%clk 0:00:08.5]} 35... Kd7 {[%clk 0:01:18.7]} 36.
Ra1 {[%clk 0:00:05.9]} 36... Rxa1 {[%clk 0:01:18.6]} 37. Rxa1 {[%clk 0:00:06.1]}
37... Rc7 {[%clk 0:01:19.5]} 38. Ra3 {[%clk 0:00:05.5]} 38... Ra7 {[%clk
0:01:18.4]} 39. Kf2 {[%clk 0:00:05]} 39... Bc7 {[%clk 0:01:18.1]} 40. Ke3 {[%clk
0:00:05.3]} 40... g5 {[%clk 0:01:15.9]} 41. Kd3 {[%clk 0:00:04.7]} 41... Kd6
{[%clk 0:01:10.6]} 42. Ra1 {[%clk 0:00:03.8]} 42... Bb6 {[%clk 0:01:07.6]} 43.
Nb3 {[%clk 0:00:01.2]} 43... Rxa1 {[%clk 0:01:04.9]} 44. Nxa1 {[%clk 0:00:02.1]}
44... f6 {[%clk 0:01:04.9]} 45. Nc2 {[%clk 0:00:02.6]} 45... e5 {[%clk
0:01:05.3]} 46. Na3 {[%clk 0:00:02.8]} 46... e4+ {[%clk 0:01:04.6]} 47. Ke3
{[%clk 0:00:02.6]} 47... f4+ {[%clk 0:01:04.6]} 48. Ke2 {[%clk 0:00:03.2]} 48...
Kc6 {[%clk 0:01:04.8]} 49. Nc2 {[%clk 0:00:01.7]} 49... Bc7 {[%clk 0:01:03.8]}
50. Na3 {[%clk 0:00:02.3]} 50... f5 {[%clk 0:01:03.5]} 51. Nc2 {[%clk
0:00:02.5]} 51... Bd8 {[%clk 0:01:03.3]} 52. Ne1 {[%clk 0:00:02.9]} 52... g4
{[%clk 0:01:03.2]} 53. hxg4 {[%clk 0:00:03]} 53... fxg4 {[%clk 0:01:04.1]} 54.
Nc2 {[%clk 0:00:02.7]} 54... Bh4 {[%clk 0:01:03.7]} 55. Na3 {[%clk 0:00:01.9]}
55... f3+ {[%clk 0:01:03.4]} 56. gxf3 {[%clk 0:00:02.8]} 56... gxf3+ {[%clk
0:01:03.6]} 57. Kf1 {[%clk 0:00:03.4]} 57... e3 {[%clk 0:01:03.6]} 58. Nc2
{[%clk 0:00:01]} 58... e2+ {[%clk 0:01:03.8]} 0-1

[Event "Late-Titled-Tuesday-Blitz-July-09-2024"]
[Site "Chess.com"]
[Date "2024.07.09"]
[Round "3"]
[White "legendisback1"]
[Black "AcostaPablo"]
[Result "1-0"]
[WhiteElo "3033"]
[BlackElo "2710"]
[TimeControl "180+1"]
[EndTime "14:28:21 PDT"]
[Termination "legendisback1 won by checkmate"]

1. d4 {[%clk 0:02:57.5]} 1... Nf6 {[%clk 0:02:59.7]} 2. Nc3 {[%clk 0:02:58.4]}
2... d5 {[%clk 0:02:59.4]} 3. Bf4 {[%clk 0:02:55.9]} 3... c6 {[%clk 0:02:59]} 4.
Nf3 {[%clk 0:02:54.8]} 4... Bf5 {[%clk 0:02:58.7]} 5. e3 {[%clk 0:02:54.3]} 5...
Nbd7 {[%clk 0:02:57.6]} 6. Ne5 {[%clk 0:02:50.9]} 6... e6 {[%clk 0:02:52.8]} 7.
g4 {[%clk 0:02:47.3]} 7... Bg6 {[%clk 0:02:51.6]} 8. h4 {[%clk 0:02:47]} 8...
Qb6 {[%clk 0:02:26.9]} 9. Rb1 {[%clk 0:02:33.9]} 9... Nxe5 {[%clk 0:02:02.5]}
10. dxe5 {[%clk 0:02:34.8]} 10... Nxg4 {[%clk 0:02:02.5]} 11. Qxg4 {[%clk
0:01:59.9]} 11... Bxc2 {[%clk 0:02:02.5]} 12. Qe2 {[%clk 0:02:00.6]} 12... Bxb1
{[%clk 0:02:01.2]} 13. Nxb1 {[%clk 0:02:01.5]} 13... Bb4+ {[%clk 0:01:51.8]} 14.
Kd1 {[%clk 0:02:02]} 14... O-O-O {[%clk 0:01:46.9]} 15. a3 {[%clk 0:01:57.9]}
15... Be7 {[%clk 0:01:44.9]} 16. Kc1 {[%clk 0:01:53.2]} 16... d4 {[%clk
0:01:42.1]} 17. Qc2 {[%clk 0:01:48.6]} 17... h6 {[%clk 0:01:32.7]} 18. Nd2
{[%clk 0:01:44.2]} 18... g5 {[%clk 0:01:20.2]} 19. Bg3 {[%clk 0:01:43.1]} 19...
dxe3 {[%clk 0:01:19.6]} 20. Nc4 {[%clk 0:01:37.9]} 20... Qc5 {[%clk 0:01:16]}
21. fxe3 {[%clk 0:01:37]} 21... b5 {[%clk 0:01:08.2]} 22. Nd6+ {[%clk
0:01:33.4]} 22... Bxd6 {[%clk 0:01:04.8]} 23. exd6 {[%clk 0:01:34.3]} 23...
Qxe3+ {[%clk 0:00:53.6]} 24. Kb1 {[%clk 0:01:32.7]} 24... Kd7 {[%clk 0:00:52.1]}
25. Bg2 {[%clk 0:01:29.5]} 25... Rc8 {[%clk 0:00:51.7]} 26. Bf2 {[%clk
0:01:22.3]} 26... Qf4 {[%clk 0:00:48.1]} 27. Rf1 {[%clk 0:01:21.3]} 27... Qg4
{[%clk 0:00:45]} 28. Bxa7 {[%clk 0:01:19.5]} 28... f5 {[%clk 0:00:44.3]} 29. Bf3
{[%clk 0:01:14.8]} 29... Qc4 {[%clk 0:00:42.5]} 30. Qd1 {[%clk 0:01:04.2]} 30...
b4 {[%clk 0:00:38.2]} 31. Be2 {[%clk 0:01:02.7]} 31... Qxh4 {[%clk 0:00:37.5]}
32. Bf2 {[%clk 0:01:00.4]} 32... Qe4+ {[%clk 0:00:31.5]} 33. Bd3 {[%clk
0:00:59.4]} 33... Qd5 {[%clk 0:00:31.8]} 34. a4 {[%clk 0:00:57.3]} 34... g4
{[%clk 0:00:26.2]} 35. Qd2 {[%clk 0:00:53.4]} 35... f4 {[%clk 0:00:20]} 36. Rd1
{[%clk 0:00:47.1]} 36... Qf3 {[%clk 0:00:17.3]} 37. Bd4 {[%clk 0:00:43.1]} 37...
Rhf8 {[%clk 0:00:15.9]} 38. Rf1 {[%clk 0:00:42.8]} 38... Qd5 {[%clk 0:00:16]}
39. Qxb4 {[%clk 0:00:43.2]} 39... Qxd6 {[%clk 0:00:15.3]} 40. Qc3 {[%clk
0:00:41.3]} 40... c5 {[%clk 0:00:14.2]} 41. Be5 {[%clk 0:00:37.7]} 41... Qd5
{[%clk 0:00:14.3]} 42. Rd1 {[%clk 0:00:36.5]} 42... Ke7 {[%clk 0:00:14.1]} 43.
Bc2 {[%clk 0:00:36.9]} 43... Qf3 {[%clk 0:00:12.2]} 44. Bd6+ {[%clk 0:00:36.7]}
44... Kf7 {[%clk 0:00:12.8]} 45. Qe5 {[%clk 0:00:34.7]} 45... Rfd8 {[%clk
0:00:08.3]} 46. Qh5+ {[%clk 0:00:34.8]} 46... Kg7 {[%clk 0:00:09]} 47. Qg6+
{[%clk 0:00:35.7]} 47... Kh8 {[%clk 0:00:08.7]} 48. Qh7# {[%clk 0:00:36.6]} 1-0

[Event "Late-Titled-Tuesday-Blitz-July-09-2024"]
[Site "Chess.com"]
[Date "2024.07.09"]
[Round "3"]
[White "DeArron_Fox"]
[Black "LikeWater"]
[Result "0-1"]
[WhiteElo "2431"]
[BlackElo "2661"]
[TimeControl "180+1"]
[EndTime "14:28:21 PDT"]
[Termination "LikeWater won on time"]

1. d4 {[%clk 0:03:00.9]} 1... Nf6 {[%clk 0:03:00]} 2. c4 {[%clk 0:03:00.9]} 2...
g6 {[%clk 0:03:00.5]} 3. Nc3 {[%clk 0:03:01.2]} 3... Bg7 {[%clk 0:03:00.7]} 4.
e4 {[%clk 0:03:01.5]} 4... O-O {[%clk 0:03:01]} 5. f3 {[%clk 0:03:01.8]} 5... d6
{[%clk 0:03:00.9]} 6. Be3 {[%clk 0:03:02]} 6... c5 {[%clk 0:03:01.1]} 7. Nge2
{[%clk 0:02:59.9]} 7... Nc6 {[%clk 0:03:00.9]} 8. d5 {[%clk 0:03:00.1]} 8... Ne5
{[%clk 0:03:00.4]} 9. Ng3 {[%clk 0:03:00.6]} 9... e6 {[%clk 0:03:00.1]} 10. Be2
{[%clk 0:02:58.7]} 10... exd5 {[%clk 0:03:00]} 11. cxd5 {[%clk 0:02:58.3]} 11...
h5 {[%clk 0:03:00.1]} 12. O-O {[%clk 0:02:57.1]} 12... h4 {[%clk 0:02:59.7]} 13.
Nh1 {[%clk 0:02:57.3]} 13... Nh7 {[%clk 0:02:45.6]} 14. Nf2 {[%clk 0:02:52.2]}
14... f5 {[%clk 0:02:42.8]} 15. f4 {[%clk 0:02:47]} 15... Nf7 {[%clk 0:02:36.6]}
16. Bd3 {[%clk 0:02:28.3]} 16... b5 {[%clk 0:02:29.7]} 17. Bxb5 {[%clk
0:01:34.5]} 17... Rb8 {[%clk 0:02:28.6]} 18. Qe2 {[%clk 0:01:33.6]} 18... Qb6
{[%clk 0:02:17.9]} 19. Rab1 {[%clk 0:01:13.5]} 19... fxe4 {[%clk 0:02:08.4]} 20.
Bc4 {[%clk 0:00:38.6]} 20... Bf5 {[%clk 0:01:58.2]} 21. Rfc1 {[%clk 0:00:23.7]}
21... Rfe8 {[%clk 0:01:44.5]} 22. b4 {[%clk 0:00:19.2]} 22... Qd8 {[%clk
0:01:40.4]} 23. bxc5 {[%clk 0:00:14.1]} 23... dxc5 {[%clk 0:01:39.3]} 24. Rxb8
{[%clk 0:00:13.8]} 24... Qxb8 {[%clk 0:01:39.2]} 25. Na4 {[%clk 0:00:05.7]}
25... Bd4 {[%clk 0:01:36.9]} 26. Nxc5 {[%clk 0:00:05.5]} 26... Bxe3 {[%clk
0:01:09.4]} 27. Qxe3 {[%clk 0:00:06.4]} 27... Nd6 {[%clk 0:01:09.9]} 28. Ne6
{[%clk 0:00:04.9]} 28... Rc8 {[%clk 0:01:03.1]} 29. Bb3 {[%clk 0:00:03.2]} 29...
Nf6 {[%clk 0:01:03.7]} 30. Rxc8+ {[%clk 0:00:02.2]} 30... Qxc8 {[%clk
0:01:04.6]} 31. h3 {[%clk 0:00:02.8]} 31... Nb5 {[%clk 0:00:49.3]} 32. Qe1
{[%clk 0:00:01.5]} 32... Nc3 {[%clk 0:00:40.1]} 33. Ng4 {[%clk 0:00:01.6]} 33...
Nfxd5 {[%clk 0:00:36.1]} 34. Nd4 {[%clk 0:00:01.7]} 34... Qc5 {[%clk 0:00:33.2]}
35. Kh2 {[%clk 0:00:01.4]} 35... Qxd4 {[%clk 0:00:32.9]} 36. Qxh4 {[%clk
0:00:02.3]} 36... Bxg4 {[%clk 0:00:27.5]} 37. Qxg4 {[%clk 0:00:02]} 37... Kg7
{[%clk 0:00:28.1]} 38. f5 {[%clk 0:00:02]} 38... Qe5+ {[%clk 0:00:28.6]} 39. g3
{[%clk 0:00:01.9]} 39... Qxf5 {[%clk 0:00:29.2]} 40. Qh4 {[%clk 0:00:01.7]}
40... Qf2+ {[%clk 0:00:29]} 41. Kh1 {[%clk 0:00:02.3]} 41... e3 {[%clk
0:00:27.8]} 42. Qd4+ {[%clk 0:00:01.3]} 42... Qf6 {[%clk 0:00:28.5]} 43. Qd3
{[%clk 0:00:01.2]} 43... e2 {[%clk 0:00:28.7]} 0-1

[Event "Late-Titled-Tuesday-Blitz-July-09-2024"]
[Site "Chess.com"]
[Date "2024.07.09"]
[Round "3"]
[White "hellokostya"]
[Black "NajdorfPlayerc5"]
[Result "1-0"]
[WhiteElo "2632"]
[BlackElo "2418"]
[TimeControl "180+1"]
[EndTime "14:28:21 PDT"]
[Termination "hellokostya won by checkmate"]

1. e4 {[%clk 0:03:00.9]} 1... c6 {[%clk 0:02:58.7]} 2. d4 {[%clk 0:02:46.7]}
2... d5 {[%clk 0:02:57.7]} 3. e5 {[%clk 0:02:47.2]} 3... Bf5 {[%clk 0:02:54.9]}
4. Nf3 {[%clk 0:02:47.4]} 4... e6 {[%clk 0:02:50.6]} 5. Be2 {[%clk 0:02:47.8]}
5... c5 {[%clk 0:02:33.1]} 6. O-O {[%clk 0:02:40.9]} 6... Nc6 {[%clk 0:02:32.4]}
7. Be3 {[%clk 0:02:39.1]} 7... cxd4 {[%clk 0:02:27]} 8. Nxd4 {[%clk 0:02:38.4]}
8... Nxd4 {[%clk 0:02:27.1]} 9. Bxd4 {[%clk 0:02:37.7]} 9... Ne7 {[%clk
0:02:27.6]} 10. c4 {[%clk 0:02:29.2]} 10... dxc4 {[%clk 0:02:01.7]} 11. Bxc4
{[%clk 0:02:17]} 11... Nc6 {[%clk 0:02:01.2]} 12. Bb5 {[%clk 0:02:15.2]} 12...
Be7 {[%clk 0:01:51.3]} 13. Nc3 {[%clk 0:02:09.3]} 13... O-O {[%clk 0:01:49.9]}
14. Bxc6 {[%clk 0:02:09.5]} 14... bxc6 {[%clk 0:01:50.8]} 15. Be3 {[%clk
0:02:05.7]} 15... Bb4 {[%clk 0:01:25.7]} 16. Qa4 {[%clk 0:02:03.1]} 16... Qa5
{[%clk 0:01:18.5]} 17. Qxa5 {[%clk 0:01:58.5]} 17... Bxa5 {[%clk 0:01:19.4]} 18.
Rac1 {[%clk 0:01:53.8]} 18... Bxc3 {[%clk 0:01:08.6]} 19. Rxc3 {[%clk
0:01:52.6]} 19... Be4 {[%clk 0:01:08.7]} 20. Bc5 {[%clk 0:01:47.1]} 20... Rfd8
{[%clk 0:01:07.9]} 21. Bd6 {[%clk 0:01:46.7]} 21... Bd5 {[%clk 0:01:07.9]} 22.
Ra3 {[%clk 0:01:44.4]} 22... Rd7 {[%clk 0:00:49.7]} 23. Ra4 {[%clk 0:01:43]}
23... Rb7 {[%clk 0:00:48.3]} 24. b3 {[%clk 0:01:42.3]} 24... h6 {[%clk 0:00:39]}
25. Rc1 {[%clk 0:01:41.7]} 25... Rc8 {[%clk 0:00:36.6]} 26. f4 {[%clk
0:01:40.8]} 26... g6 {[%clk 0:00:35.9]} 27. g3 {[%clk 0:01:37.1]} 27... h5
{[%clk 0:00:35.4]} 28. Kf2 {[%clk 0:01:36.8]} 28... Kg7 {[%clk 0:00:23.4]} 29.
Rc5 {[%clk 0:01:37]} 29... Ra8 {[%clk 0:00:22.3]} 30. h3 {[%clk 0:01:35.4]}
30... Rb5 {[%clk 0:00:22.1]} 31. Rc3 {[%clk 0:01:32.1]} 31... a5 {[%clk
0:00:14.7]} 32. Be7 {[%clk 0:01:27.5]} 32... Rc8 {[%clk 0:00:12.9]} 33. g4
{[%clk 0:01:24.7]} 33... hxg4 {[%clk 0:00:12.5]} 34. hxg4 {[%clk 0:01:25.6]}
34... Rh8 {[%clk 0:00:01]} 35. Bf6+ {[%clk 0:01:25.3]} 35... Kg8 {[%clk
0:00:01.3]} 36. Bxh8 {[%clk 0:01:25]} 36... Kxh8 {[%clk 0:00:01.8]} 37. Ke3
{[%clk 0:01:21.8]} 37... Kg7 {[%clk 0:00:02.1]} 38. Kd4 {[%clk 0:01:21.8]} 38...
Kf8 {[%clk 0:00:02]} 39. Rc5 {[%clk 0:01:22.4]} 39... Rb4+ {[%clk 0:00:01.4]}
40. Rxb4 {[%clk 0:01:21.8]} 40... axb4 {[%clk 0:00:02.3]} 41. Ra5 {[%clk
0:01:20.1]} 41... Ke7 {[%clk 0:00:03.2]} 42. Ra7+ {[%clk 0:01:18.3]} 42... Ke8
{[%clk 0:00:03.5]} 43. Kc5 {[%clk 0:01:17.1]} 43... Bf3 {[%clk 0:00:03.7]} 44.
Kd6 {[%clk 0:01:15.8]} 44... Kf8 {[%clk 0:00:02.4]} 45. g5 {[%clk 0:01:14.6]}
45... Be4 {[%clk 0:00:02.5]} 46. Kc5 {[%clk 0:01:11.7]} 46... Bb1 {[%clk
0:00:02.5]} 47. Kxb4 {[%clk 0:01:11.4]} 47... Be4 {[%clk 0:00:02.6]} 48. Kc5
{[%clk 0:01:12]} 48... Bd5 {[%clk 0:00:02.8]} 49. b4 {[%clk 0:01:11.5]} 49...
Be4 {[%clk 0:00:02.1]} 50. a4 {[%clk 0:01:11.6]} 50... Bc2 {[%clk 0:00:02.4]}
51. a5 {[%clk 0:01:12]} 51... Be4 {[%clk 0:00:03.3]} 52. a6 {[%clk 0:01:12]}
52... Bd3 {[%clk 0:00:03.3]} 53. Ra8+ {[%clk 0:01:11.8]} 53... Kg7 {[%clk
0:00:03.9]} 54. a7 {[%clk 0:01:12.6]} 54... Ba6 {[%clk 0:00:02.7]} 55. Rb8
{[%clk 0:01:12.2]} 55... Bb7 {[%clk 0:00:03.6]} 56. Rxb7 {[%clk 0:01:09.9]}
56... Kh7 {[%clk 0:00:02.1]} 57. a8=Q {[%clk 0:01:09.1]} 57... Kg7 {[%clk
0:00:03]} 58. Qd8 {[%clk 0:01:05.7]} 58... Kh7 {[%clk 0:00:03.9]} 59. Rb8 {[%clk
0:01:03.1]} 59... Kg7 {[%clk 0:00:03.7]} 60. Qh8# {[%clk 0:01:03.5]} 1-0